Workbook

Sheet Information
E1: SUBSTITUTION
E2: Cardinal numbers
C4: INSTRUCTIONS
B6: Step 1 | C6: Click on WorkSheet tab below. | I6: PRESS F9 for NEW WorkSheet
B8: Note | C8: If you hold down shift then click on the WorkSheet tab and the Answers tab, you will be able to print both the WorkSheet and the solutions.
C13: NOTES:
C14: * Practise simple substitution with cardinal numbers.
C15: * The answers show working.

Sheet Worksheet
C1: SUBSTITUTION
C2: SHOW ALL WORKING | G2: =CONCATENATE("Worksheet ",Working!D1,Working!B1) -> Worksheet SUB-699
A3: Evaluate the following expressions if;
B4: =CONCATENATE(Working!A4," = ",Working!S4,", ",Working!A5," = ",Working!S5,", ",Working!A6," = ",Working!S6,", ",Working!A7," = ",Working!S7,", ",Working!A8," = ",Working!S8) -> c = 3, d = 4, j = 5, s = 6, y = 10
A5: =CONCATENATE(Working!A13,")") -> 1) | B5: =Working!$T13 -> c + 5 | C5: =CONCATENATE(Working!A23,")") -> 11) | D5: =Working!$T23 -> dj | E5: =CONCATENATE(Working!A33,")") -> 21) | F5: =Working!$T33 -> 6(d + 6) | G5: =CONCATENATE(Working!A43,")") -> 31) | H5: =Working!$T43 -> y² - 4
A6: = | C6: = | E6: = | G6: =
A7: = | C7: = | E7: = | G7: =
A8: =CONCATENATE(Working!A14,")") -> 2) | B8: =Working!$T14 -> y + 7 | C8: =CONCATENATE(Working!A24,")") -> 12) | D8: =Working!$T24 -> 5c + 6 | E8: =CONCATENATE(Working!A34,")") -> 22) | F8: =Working!$T34 -> 5(y - 3) | G8: =CONCATENATE(Working!A44,")") -> 32) | H8: =Working!$T44 -> c² + 3d
A9: = | C9: = | E9: = | G9: =
A10: = | C10: = | E10: = | G10: =
A11: =CONCATENATE(Working!A15,")") -> 3) | B11: =Working!$T15 -> s - 4 | C11: =CONCATENATE(Working!A25,")") -> 13) | D11: =Working!$T25 -> 7y - 6 | E11: =CONCATENATE(Working!A35,")") -> 23) | F11: =Working!$T35 -> 3(4s + 3) | G11: =CONCATENATE(Working!A45,")") -> 33) | H11: =Working!$T45 -> c² + j²
A12: = | C12: = | E12: = | G12: =
A13: = | C13: = | E13: = | G13: =
A14: =CONCATENATE(Working!A16,")") -> 4) | B14: =Working!$T16 -> j + y | C14: =CONCATENATE(Working!A26,")") -> 14) | D14: =Working!$T26 -> dc + 6 | E14: =CONCATENATE(Working!A36,")") -> 24) | F14: =Working!$T36 -> 2(4j - 2) | G14: =CONCATENATE(Working!A46,")") -> 34) | H14: =Working!$T46 -> s² - j²
A15: = | C15: = | E15: = | G15: =
A16: = | C16: = | E16: = | G16: =
A17: =CONCATENATE(Working!A17,")") -> 5) | B17: =Working!$T17 -> y - j | C17: =CONCATENATE(Working!A27,")") -> 15) | D17: =Working!$T27 -> sc + 7 | E17: =CONCATENATE(Working!A37,")") -> 25) | F17: =Working!$T37 -> 4(4c + 3d) | G17: =CONCATENATE(Working!A47,")") -> 35) | H17: =Working!$T47 -> cs²
A18: = | C18: = | E18: = | G18: =
A19: = | C19: = | E19: = | G19: =
A20: =CONCATENATE(Working!A18,")") -> 6) | B20: =Working!$T18 -> s - c + 4 | C20: =CONCATENATE(Working!A28,")") -> 16) | D20: =Working!$T28 -> csd | E20: =CONCATENATE(Working!A38,")") -> 26) | F20: =Working!$T38 -> 5(2j + 3c + s) | G20: =CONCATENATE(Working!A48,")") -> 36) | H20: =Working!$T48 -> c²d²
A21: = | C21: = | E21: = | G21: =
A22: = | C22: = | E22: = | G22: =
A23: =CONCATENATE(Working!A19,")") -> 7) | B23: =Working!$T19 -> d + c + j | C23: =CONCATENATE(Working!A29,")") -> 17) | D23: =Working!$T29 -> jcd | E23: =CONCATENATE(Working!A39,")") -> 27) | F23: =Working!$T39 -> d² | G23: =CONCATENATE(Working!A49,")") -> 37) | H23: =Working!$T49 -> 3dc²
A24: = | C24: = | E24: = | G24: =
A25: = | C25: = | E25: = | G25: =
A26: =CONCATENATE(Working!A20,")") -> 8) | B26: =Working!$T20 -> c + s - j | C26: =CONCATENATE(Working!A30,")") -> 18) | D26: =Working!$T30 -> cd + js | E26: =CONCATENATE(Working!A40,")") -> 28) | F26: =Working!$T40 -> 3y² | G26: =CONCATENATE(Working!A50,")") -> 38) | H26: =Working!$T50 -> cj² + 8c
A27: = | C27: = | E27: = | G27: =
A28: = | C28: = | E28: = | G28: =
A29: =CONCATENATE(Working!A21,")") -> 9) | B29: =Working!$T21 -> 3d | C29: =CONCATENATE(Working!A31,")") -> 19) | D29: =Working!$T31 -> cs + dj | E29: =CONCATENATE(Working!A41,")") -> 29) | F29: =Working!$T41 -> 2y² | G29: =CONCATENATE(Working!A51,")") -> 39) | H29: =Working!$T51 -> 8(d² - 5)
A30: = | C30: = | E30: = | G30: =
A31: = | C31: = | E31: = | G31: =
A32: =CONCATENATE(Working!A22,")") -> 10) | B32: =Working!$T22 -> 6j | C32: =CONCATENATE(Working!A32,")") -> 20) | D32: =Working!$T32 -> yc + yj | E32: =CONCATENATE(Working!A42,")") -> 30) | F32: =Working!$T42 -> d² + 2 | G32: =CONCATENATE(Working!A52,")") -> 40) | H32: =Working!$T52 -> 10(y² - j²)
A33: = | C33: = | E33: = | G33: =
A34: = | C34: = | E34: = | G34: =

Sheet Answers
C1: SUBSTITUTION
C2: ANSWERS | G2: =CONCATENATE("Worksheet ",Working!D1,Working!B1) -> Worksheet SUB-699
A3: Evaluate the following expressions if;
B4: =CONCATENATE(Working!A4," = ",Working!S4,", ",Working!A5," = ",Working!S5,", ",Working!A6," = ",Working!S6,", ",Working!A7," = ",Working!S7,", ",Working!A8," = ",Working!S8) -> c = 3, d = 4, j = 5, s = 6, y = 10
A5: =CONCATENATE(Working!A13,")") -> 1) | B5: =Working!$T13 -> c + 5 | C5: =CONCATENATE(Working!A23,")") -> 11) | D5: =Working!$T23 -> dj | E5: =CONCATENATE(Working!A33,")") -> 21) | F5: =Working!$T33 -> 6(d + 6) | G5: =CONCATENATE(Working!A43,")") -> 31) | H5: =Working!$T43 -> y² - 4
A6: = | B6: =Working!$U13 -> 3 + 5 | C6: = | D6: =Working!$U23 -> 4 × 5 | E6: = | F6: =Working!$U33 -> 6 × (4 + 6) | G6: = | H6: =Working!$U43 -> 10² - 4
A7: = | B7: =Working!$V13 -> 8 | C7: = | D7: =Working!$V13 -> 8 | E7: = | F7: =Working!$V33 -> 60 | G7: = | H7: =Working!$V43 -> 96
A8: =CONCATENATE(Working!A14,")") -> 2) | B8: =Working!$T14 -> y + 7 | C8: =CONCATENATE(Working!A24,")") -> 12) | D8: =Working!$T24 -> 5c + 6 | E8: =CONCATENATE(Working!A34,")") -> 22) | F8: =Working!$T34 -> 5(y - 3) | G8: =CONCATENATE(Working!A44,")") -> 32) | H8: =Working!$T44 -> c² + 3d
A9: = | B9: =Working!$U14 -> 10 + 7 | C9: = | D9: =Working!$U24 -> 5 × 3 + 6 | E9: = | F9: =Working!$U34 -> 5 × (10 - 3) | G9: = | H9: =Working!$U44 -> 3² + 3 × 4
A10: = | B10: =Working!$V14 -> 17 | C10: = | D10: =Working!$V24 -> 21 | E10: = | F10: =Working!$V34 -> 35 | G10: = | H10: =Working!$V44 -> 21
A11: =CONCATENATE(Working!A15,")") -> 3) | B11: =Working!$T15 -> s - 4 | C11: =CONCATENATE(Working!A25,")") -> 13) | D11: =Working!$T25 -> 7y - 6 | E11: =CONCATENATE(Working!A35,")") -> 23) | F11: =Working!$T35 -> 3(4s + 3) | G11: =CONCATENATE(Working!A45,")") -> 33) | H11: =Working!$T45 -> c² + j²
A12: = | B12: =Working!$U15 -> 6 - 4 | C12: = | D12: =Working!$U25 -> 7 × 10 - 6 | E12: = | F12: =Working!$U35 -> 3 × (4 × 6 + 3) | G12: = | H12: =Working!$U45 -> 3² + 5²
A13: = | B13: =Working!$V15 -> 2 | C13: = | D13: =Working!$V25 -> 64 | E13: = | F13: =Working!$V35 -> 81 | G13: = | H13: =Working!$V45 -> 34
A14: =CONCATENATE(Working!A16,")") -> 4) | B14: =Working!$T16 -> j + y | C14: =CONCATENATE(Working!A26,")") -> 14) | D14: =Working!$T26 -> dc + 6 | E14: =CONCATENATE(Working!A36,")") -> 24) | F14: =Working!$T36 -> 2(4j - 2) | G14: =CONCATENATE(Working!A46,")") -> 34) | H14: =Working!$T46 -> s² - j²
A15: = | B15: =Working!$U16 -> 5 + 10 | C15: = | D15: =Working!$U26 -> 4 × 3 + 6 | E15: = | F15: =Working!$U36 -> 2 × (4 × 5 - 2) | G15: = | H15: =Working!$U46 -> 6² - 5²
A16: = | B16: =Working!$V16 -> 15 | C16: = | D16: =Working!$V26 -> 18 | E16: = | F16: =Working!$V36 -> 36 | G16: = | H16: =Working!$V46 -> 11
A17: =CONCATENATE(Working!A17,")") -> 5) | B17: =Working!$T17 -> y - j | C17: =CONCATENATE(Working!A27,")") -> 15) | D17: =Working!$T27 -> sc + 7 | E17: =CONCATENATE(Working!A37,")") -> 25) | F17: =Working!$T37 -> 4(4c + 3d) | G17: =CONCATENATE(Working!A47,")") -> 35) | H17: =Working!$T47 -> cs²
A18: = | B18: =Working!$U17 -> 10 - 5 | C18: = | D18: =Working!$U27 -> 6 × 3 + 7 | E18: = | F18: =Working!$U37 -> 4 × (4 × 3 + 3 × 4) | G18: = | H18: =Working!$U47 -> 3 × 6²
A19: = | B19: =Working!$V17 -> 5 | C19: = | D19: =Working!$V27 -> 25 | E19: = | F19: =Working!$V37 -> 96 | G19: = | H19: =Working!$V47 -> 108
A20: =CONCATENATE(Working!A18,")") -> 6) | B20: =Working!$T18 -> s - c + 4 | C20: =CONCATENATE(Working!A28,")") -> 16) | D20: =Working!$T28 -> csd | E20: =CONCATENATE(Working!A38,")") -> 26) | F20: =Working!$T38 -> 5(2j + 3c + s) | G20: =CONCATENATE(Working!A48,")") -> 36) | H20: =Working!$T48 -> c²d²
A21: = | B21: =Working!$U18 -> 6 - 3 + 4 | C21: = | D21: =Working!$U28 -> 3 × 6 × 4 | E21: = | F21: =Working!$U38 -> 5(2 × 5 + 3 × 3 + 6) | G21: = | H21: =Working!$U48 -> 3² × 4²
A22: = | B22: =Working!$V18 -> 7 | C22: = | D22: =Working!$V28 -> 72 | E22: = | F22: =Working!$V38 -> 125 | G22: = | H22: =Working!$V48 -> 144
A23: =CONCATENATE(Working!A19,")") -> 7) | B23: =Working!$T19 -> d + c + j | C23: =CONCATENATE(Working!A29,")") -> 17) | D23: =Working!$T29 -> jcd | E23: =CONCATENATE(Working!A39,")") -> 27) | F23: =Working!$T39 -> d² | G23: =CONCATENATE(Working!A49,")") -> 37) | H23: =Working!$T49 -> 3dc²
A24: = | B24: =Working!$U19 -> 4 + 3 + 5 | C24: = | D24: =Working!$U29 -> 5 × 3 × 4 | E24: = | F24: =Working!$U39 -> 4² | G24: = | H24: =Working!$U49 -> 3 × 4 × 3²
A25: = | B25: =Working!$V19 -> 12 | C25: = | D25: =Working!$V29 -> 60 | E25: = | F25: =Working!$V39 -> 16 | G25: = | H25: =Working!$V49 -> 108
A26: =CONCATENATE(Working!A20,")") -> 8) | B26: =Working!$T20 -> c + s - j | C26: =CONCATENATE(Working!A30,")") -> 18) | D26: =Working!$T30 -> cd + js | E26: =CONCATENATE(Working!A40,")") -> 28) | F26: =Working!$T40 -> 3y² | G26: =CONCATENATE(Working!A50,")") -> 38) | H26: =Working!$T50 -> cj² + 8c
A27: = | B27: =Working!$U20 -> 3 + 6 - 5 | C27: = | D27: =Working!$U30 -> 3 × 4 + 5 × 6 | E27: = | F27: =Working!$U40 -> 3 × 10² | G27: = | H27: =Working!$U50 -> 3 × 5² + 8 × 3
A28: = | B28: =Working!$V20 -> 4 | C28: = | D28: =Working!$V30 -> 42 | E28: = | F28: =Working!$V40 -> 300 | G28: = | H28: =Working!$V50 -> 99
A29: =CONCATENATE(Working!A21,")") -> 9) | B29: =Working!$T21 -> 3d | C29: =CONCATENATE(Working!A31,")") -> 19) | D29: =Working!$T31 -> cs + dj | E29: =CONCATENATE(Working!A41,")") -> 29) | F29: =Working!$T41 -> 2y² | G29: =CONCATENATE(Working!A51,")") -> 39) | H29: =Working!$T51 -> 8(d² - 5)
A30: = | B30: =Working!$U21 -> 3 × 4 | C30: = | D30: =Working!$U31 -> 3 × 6 + 4 × 5 | E30: = | F30: =Working!$U41 -> 2 × 10² | G30: = | H30: =Working!$U51 -> 8 × (4² - 5)
A31: = | B31: =Working!$V21 -> 12 | C31: = | D31: =Working!$V31 -> 38 | E31: = | F31: =Working!$V41 -> 200 | G31: = | H31: =Working!$V51 -> 88
A32: =CONCATENATE(Working!A22,")") -> 10) | B32: =Working!$T22 -> 6j | C32: =CONCATENATE(Working!A32,")") -> 20) | D32: =Working!$T32 -> yc + yj | E32: =CONCATENATE(Working!A42,")") -> 30) | F32: =Working!$T42 -> d² + 2 | G32: =CONCATENATE(Working!A52,")") -> 40) | H32: =Working!$T52 -> 10(y² - j²)
A33: = | B33: =Working!$U22 -> 6 × 5 | C33: = | D33: =Working!$U32 -> 10 × 3 + 10 × 5 | E33: = | F33: =Working!$U42 -> 4² + 2 | G33: = | H33: =Working!$U52 -> 10 × (10² - 5²)
A34: = | B34: =Working!$V22 -> 30 | C34: = | D34: =Working!$V32 -> 80 | E34: = | F34: =Working!$V42 -> 18 | G34: = | H34: =Working!$V52 -> 750

Sheet Working (hidden)
A1: =INT(900*RAND()+100) -> 699 | B1: =TEXT(1,A1) -> 699 | D1: SUB-
A3: Sets of values | C3: Pronumeral | D3: 1 | E3: 2 | F3: 3 | G3: 4 | H3: 5 | I3: 6 | J3: 7 | K3: 8 | L3: 9 | M3: 10 | N3: 11 | O3: 12 | P3: 13 | Q3: 14 | R3: 15 | S3: Use
A4: =CHAR(C4) -> c | B4: =INT(15*RAND()) -> 7 | C4: =INT(3*RAND()+97) -> 99 | D4: 2 | E4: 2 | F4: 3 | G4: 2 | H4: 2 | I4: 3 | J4: 2 | K4: 3 | L4: 2 | M4: 4 | N4: 2 | O4: 3 | P4: 3 | Q4: 2 | R4: 2 | S4: =OFFSET(D4,0,VALUE(B$4)) -> 3
A5: =CHAR(C5) -> d | C5: =INT(5*RAND()+100) -> 100 | D5: 3 | E5: 4 | F5: 6 | G5: 3 | H5: 3 | I5: 4 | J5: 3 | K5: 4 | L5: 4 | M5: 5 | N5: 4 | O5: 4 | P5: 5 | Q5: 5 | R5: 3 | S5: =OFFSET(D5,0,VALUE(B$4)) -> 4
A6: =IF(C6=108,CHAR(C6+1),IF(C6=111,CHAR(C6+1),CHAR(C6))) -> j | C6: =INT(5*RAND()+106) -> 106 | D6: 4 | E6: 5 | F6: 9 | G6: 5 | H6: 5 | I6: 5 | J6: 4 | K6: 5 | L6: 5 | M6: 6 | N6: 6 | O6: 6 | P6: 6 | Q6: 7 | R6: 6 | S6: =OFFSET(D6,0,VALUE(B$4)) -> 5
A7: =CHAR(C7) -> s | C7: =INT(5*RAND()+112) -> 115 | D7: 7 | E7: 8 | F7: 7 | G7: 6 | H7: 6 | I7: 6 | J7: 6 | K7: 6 | L7: 7 | M7: 7 | N7: 8 | O7: 7 | P7: 7 | Q7: 6 | R7: 7 | S7: =OFFSET(D7,0,VALUE(B$4)) -> 6
A8: =CHAR(C8) -> y | C8: =INT(5*RAND()+117) -> 121 | D8: 8 | E8: 10 | F8: 8 | G8: 7 | H8: 8 | I8: 8 | J8: 10 | K8: 10 | L8: 10 | M8: 9 | N8: 10 | O8: 8 | P8: 8 | Q8: 10 | R8: 8 | S8: =OFFSET(D8,0,VALUE(B$4)) -> 10
E9: ×
D11: 1 | G11: 2 | J11: 3 | M11: 4 | P11: 5 | U11: Final
B12: Rand | D12: Q | E12: W | F12: A | G12: Q | H12: W | I12: A | J12: Q | K12: W | L12: A | M12: Q | N12: W | O12: A | P12: Q | Q12: W | R12: A | T12: Q | U12: W | V12: A
A13: 1 | B13: =3*INT(5*RAND()) -> 12 | C13: =INT(5*RAND()+5) -> 5 | D13: =CONCATENATE($A$4," + ",$C13) -> c + 5 | E13: =CONCATENATE($S$4," + ",$C13) -> 3 + 5 | F13: =CONCATENATE($S$4+$C$13) -> 8 | G13: =CONCATENATE($A$4," + ",($C13-2)) -> c + 3 | H13: =CONCATENATE($S$4," + ",($C13-2)) -> 3 + 3 | I13: =CONCATENATE($S$4+$C$13-2) -> 6 | J13: =CONCATENATE($A$4," + ","2") -> c + 2 | K13: =CONCATENATE($S$4," + ","2") -> 3 + 2 | L13: =CONCATENATE($S$4+2) -> 5 | M13: =CONCATENATE($A$4," + 7") -> c + 7 | N13: =CONCATENATE($S$4,," + 7") -> 3 + 7 | O13: =CONCATENATE($S$4+7) -> 10 | P13: =CONCATENATE($A$4," + 5") -> c + 5 | Q13: =CONCATENATE($S$4,," + 5") -> 3 + 5 | R13: =CONCATENATE($S$4+5) -> 8 | T13: =OFFSET(D13,0,VALUE(B13)) -> c + 5 | U13: =OFFSET(E13,0,VALUE(B13)) -> 3 + 5 | V13: =OFFSET(F13,0,VALUE(B13)) -> 8
A14: 2 | B14: =3*INT(5*RAND()) -> 0 | C14: =INT(5*RAND()+5) -> 7 | D14: =CONCATENATE($A$8," + ",$C14) -> y + 7 | E14: =CONCATENATE($S$8," + ",$C14) -> 10 + 7 | F14: =$S$8+$C14 -> 17 | G14: =CONCATENATE($A$8," + ",($C14-4)) -> y + 3 | H14: =CONCATENATE($S$8," + ",($C14-4)) -> 10 + 3 | I14: =$S$8+$C14-4 -> 13 | J14: =CONCATENATE($A$8," + ",($C14-2)) -> y + 5 | K14: =CONCATENATE($S$8," + ",($C14-2)) -> 10 + 5 | L14: =$S$8+$C14-2 -> 15 | M14: =CONCATENATE($A$8," + ",($C14-3)) -> y + 4 | N14: =CONCATENATE($S$8," + ",($C14-3)) -> 10 + 4 | O14: =$S$8+$C14-3 -> 14 | P14: =CONCATENATE($A$8," + ",($C14-1)) -> y + 6 | Q14: =CONCATENATE($S$8," + ",($C14-1)) -> 10 + 6 | R14: =$S$8+$C14-1 -> 16 | T14: =OFFSET(D14,0,VALUE(B14)) -> y + 7 | U14: =OFFSET(E14,0,VALUE(B14)) -> 10 + 7 | V14: =OFFSET(F14,0,VALUE(B14)) -> 17
A15: 3 | B15: 6 | C15: =INT(4*RAND()+3) -> 5 | D15: =CONCATENATE($A$7," - ",$C15) -> s - 5 | E15: =CONCATENATE($S$7," - ",$C15) -> 6 - 5 | F15: =$S$7-$C15 -> 1 | G15: =CONCATENATE($A$7," - ",($C15+1)) -> s - 6 | H15: =CONCATENATE($S$7," - ",($C15+1)) -> 6 - 6 | I15: =$S$7-($C15+1) -> 0 | J15: =CONCATENATE($A$7," - ",($C15-1)) -> s - 4 | K15: =CONCATENATE($S$7," - ",($C15-1)) -> 6 - 4 | L15: =$S$7-($C15-1) -> 2 | M15: =CONCATENATE($A$7," - ",($C15-2)) -> s - 3 | N15: =CONCATENATE($S$7," - ",($C15-2)) -> 6 - 3 | O15: =$S$7-($C15-2) -> 3 | P15: =CONCATENATE($A$7," - ",($C15-3)) -> s - 2 | Q15: =CONCATENATE($S$7," - ",($C15-3)) -> 6 - 2 | R15: =$S$7-($C15-3) -> 4 | T15: s - 4 | U15: 6 - 4 | V15: 2
A16: 4 | B16: 12 | C16: 7 | D16: =CONCATENATE($A$5," + ",$A$8) -> d + y | E16: =CONCATENATE($S$5," + ",$S$8) -> 4 + 10 | F16: =$S$5+$S$8 -> 14 | G16: =CONCATENATE($A$5," + ",$A$7) -> d + s | H16: =CONCATENATE($S$5," + ",$S$7) -> 4 + 6 | I16: =$S$5+$S$7 -> 10 | J16: =CONCATENATE($A$5," + ",$A$6) -> d + j | K16: =CONCATENATE($S$5," + ",$S$6) -> 4 + 5 | L16: =$S$5+$S$6 -> 9 | M16: =CONCATENATE($A$5," + ",$A$4) -> d + c | N16: =CONCATENATE($S$5," + ",$S$4) -> 4 + 3 | O16: =$S$5+$S$4 -> 7 | P16: =CONCATENATE($A$6," + ",$A$8) -> j + y | Q16: =CONCATENATE($S$6," + ",$S$8) -> 5 + 10 | R16: =$S$6+$S$8 -> 15 | T16: j + y | U16: 5 + 10 | V16: 15
A17: 5 | B17: 6 | C17: 6 | D17: =CONCATENATE($A$8," - ",$A$4) -> y - c | E17: =CONCATENATE($S$8," - ",$S$4) -> 10 - 3 | F17: =$S$8-$S$4 -> 7 | G17: =CONCATENATE($A$8," - ",$A$5) -> y - d | H17: =CONCATENATE($S$8," - ",$S$5) -> 10 - 4 | I17: =$S$8-$S$5 -> 6 | J17: =CONCATENATE($A$8," - ",$A$6) -> y - j | K17: =CONCATENATE($S$8," - ",$S$6) -> 10 - 5 | L17: =$S$8-$S$6 -> 5 | M17: =CONCATENATE($A$7," - ",$A$4) -> s - c | N17: =CONCATENATE($S$7," - ",$S$4) -> 6 - 3 | O17: =$S$7-$S$4 -> 3 | P17: =CONCATENATE($A$7," - ",$A$5) -> s - d | Q17: =CONCATENATE($S$7," - ",$S$5) -> 6 - 4 | R17: =$S$7-$S$5 -> 2 | T17: y - j | U17: 10 - 5 | V17: 5
A18: 6 | B18: 0 | C18: 6 | D18: =CONCATENATE($A$7," - ",$A$4," + 4") -> s - c + 4 | E18: =CONCATENATE($S$7," - ",$S$4," + 4") -> 6 - 3 + 4 | F18: =$S$7-$S$4+4 -> 7 | G18: =CONCATENATE($A$7," - ",$A$4," + 5") -> s - c + 5 | H18: =CONCATENATE($S$7," - ",$S$4," + 5") -> 6 - 3 + 5 | I18: =$S$7-$S$4+5 -> 8 | J18: =CONCATENATE($A$7," - ",$A$4," + 3") -> s - c + 3 | K18: =CONCATENATE($S$7," - ",$S$4," + 3") -> 6 - 3 + 3 | L18: =$S$7-$S$4+3 -> 6 | M18: =CONCATENATE($A$7," - ",$A$4," + 6") -> s - c + 6 | N18: =CONCATENATE($S$7," - ",$S$4," + 6") -> 6 - 3 + 6 | O18: =$S$7-$S$4+6 -> 9 | P18: =CONCATENATE($A$7," - ",$A$4," + 1") -> s - c + 1 | Q18: =CONCATENATE($S$7," - ",$S$4," + 1") -> 6 - 3 + 1 | R18: =$S$7-$S$4+1 -> 4 | T18: s - c + 4 | U18: 6 - 3 + 4 | V18: 7
A19: 7 | B19: 6 | C19: 9 | D19: =CONCATENATE($A$4," + ",$A$5," + ",$A$6) -> c + d + j | E19: =CONCATENATE($S$4," + ",$S$5," + ",$S$6) -> 3 + 4 + 5 | F19: =$S$4+$S$5+$S$6 -> 12 | G19: =CONCATENATE($A$4," + ",$A$5," + ",$A$7) -> c + d + s | H19: =CONCATENATE($S$4," + ",$S$5," + ",$S$7) -> 3 + 4 + 6 | I19: =$S$4+$S$5+$S$7 -> 13 | J19: =CONCATENATE($A$5," + ",$A$4," + ",$A$6) -> d + c + j | K19: =CONCATENATE($S$5," + ",$S$4," + ",$S$6) -> 4 + 3 + 5 | L19: =$S$5+$S$4+$S$6 -> 12 | M19: =CONCATENATE($A$6," + ",$A$5," + ",$A$4) -> j + d + c | N19: =CONCATENATE($S$6," + ",$S$5," + ",$S$4) -> 5 + 4 + 3 | O19: =$S$6+$S$5+$S$4 -> 12 | P19: =CONCATENATE($A$8," + ",$A$5," + ",$A$7) -> y + d + s | Q19: =CONCATENATE($S$8," + ",$S$5," + ",$S$7) -> 10 + 4 + 6 | R19: =$S$8+$S$5+$S$7 -> 20 | T19: d + c + j | U19: 4 + 3 + 5 | V19: 12
A20: 8 | B20: 3 | C20: 6 | D20: =CONCATENATE($A$4," + ",$A$8," - ",$A$6) -> c + y - j | E20: =CONCATENATE($S$4," + ",$S$8," - ",$S$6) -> 3 + 10 - 5 | F20: =$S$4+$S$8-$S$6 -> 8 | G20: =CONCATENATE($A$4," + ",$A$7," - ",$A$6) -> c + s - j | H20: =CONCATENATE($S$4," + ",$S$7," - ",$S$6) -> 3 + 6 - 5 | I20: =$S$4+$S$7-$S$6 -> 4 | J20: =CONCATENATE($A$4," + ",$A$5," - ",$A$6) -> c + d - j | K20: =CONCATENATE($S$4," + ",$S$5," - ",$S$6) -> 3 + 4 - 5 | L20: =$S$4+$S$5-$S$6 -> 2 | M20: =CONCATENATE($A$5," + ",$A$8," - ",$A$6) -> d + y - j | N20: =CONCATENATE($S$5," + ",$S$8," - ",$S$6) -> 4 + 10 - 5 | O20: =$S$5+$S$8-$S$6 -> 9 | P20: =CONCATENATE($A$5," + ",$A$7," - ",$A$6) -> d + s - j | Q20: =CONCATENATE($S$5," + ",$S$7," - ",$S$6) -> 4 + 6 - 5 | R20: =$S$5+$S$7-$S$6 -> 5 | T20: c + s - j | U20: 3 + 6 - 5 | V20: 4
A21: 9 | B21: 3 | C21: 8 | D21: =CONCATENATE("3",$A$4) -> 3c | E21: =CONCATENATE("3"," × ",$S$4) -> 3 × 3 | F21: =3*$S$4 -> 9 | G21: =CONCATENATE("3",$A$5) -> 3d | H21: =CONCATENATE("3"," × ",$S$5) -> 3 × 4 | I21: =3*$S$5 -> 12 | J21: =CONCATENATE("3",$A$6) -> 3j | K21: =CONCATENATE("3"," × ",$S$6) -> 3 × 5 | L21: =3*$S$6 -> 15 | M21: =CONCATENATE("3",$A$7) -> 3s | N21: =CONCATENATE("3"," × ",$S$7) -> 3 × 6 | O21: =3*$S$7 -> 18 | P21: =CONCATENATE("5",$A$4) -> 5c | Q21: =CONCATENATE("5"," × ",$S$4) -> 5 × 3 | R21: =5*$S$4 -> 15 | T21: 3d | U21: 3 × 4 | V21: 12
A22: 10 | B22: 9 | C22: =INT(5*RAND()+3) -> 4 | D22: =CONCATENATE($C22,$A$5) -> 4d | E22: =CONCATENATE($C22," × ",$S$5) -> 4 × 4 | F22: =$C22*$S$5 -> 16 | G22: =CONCATENATE($C22+1,$A$5) -> 5d | H22: =CONCATENATE($C22+1," × ",$S$5) -> 5 × 4 | I22: =($C22+1)*$S$5 -> 20 | J22: =CONCATENATE($C22,$A$8) -> 4y | K22: =CONCATENATE($C22," × ",$S$8) -> 4 × 10 | L22: =$C22*$S$8 -> 40 | M22: =CONCATENATE($C22+2,$A$6) -> 6j | N22: =CONCATENATE($C22+2," × ",$S$6) -> 6 × 5 | O22: =($C22+2)*$S$6 -> 30 | P22: =CONCATENATE($C22-1,$A$5) -> 3d | Q22: =CONCATENATE($C22-1," × ",$S$5) -> 3 × 4 | R22: =($C22-1)*$S$5 -> 12 | T22: 6j | U22: 6 × 5 | V22: 30
A23: 11 | B23: 6 | C23: =INT(5*RAND()+3) -> 6 | D23: =CONCATENATE($A$4,$A$6) -> cj | E23: =CONCATENATE($S$4," × ",$S$6) -> 3 × 5 | F23: =$S$4*$S$6 -> 15 | G23: =CONCATENATE($A$4,$A$5) -> cd | H23: =CONCATENATE($S$4," × ",$S$5) -> 3 × 4 | I23: =$S$4*$S$5 -> 12 | J23: =CONCATENATE($A$5,$A$6) -> dj | K23: =CONCATENATE($S$5," × ",$S$6) -> 4 × 5 | L23: =$S$5*$S$6 -> 20 | M23: =CONCATENATE($A$4,$A$8) -> cy | N23: =CONCATENATE($S$4," × ",$S$8) -> 3 × 10 | O23: =$S$4*$S$8 -> 30 | P23: =CONCATENATE($A$8,$A$6) -> yj | Q23: =CONCATENATE($S$8," × ",$S$6) -> 10 × 5 | R23: =$S$8*$S$6 -> 50 | T23: dj | U23: 4 × 5 | V23: 20
A24: 12 | B24: 6 | C24: =INT(5*RAND()+3) -> 6 | D24: =CONCATENATE($C24,$A$4," + ",$C24) -> 6c + 6 | E24: =CONCATENATE($C24," × ",$S$4," + ",$C24) -> 6 × 3 + 6 | F24: =$C24*$S$4+$C24 -> 24 | G24: =CONCATENATE($C24,$A$4," + ",$C24+2) -> 6c + 8 | H24: =CONCATENATE($C24," × ",$S$4," + ",$C24+2) -> 6 × 3 + 8 | I24: =$C24*$S$4+$C24+2 -> 26 | J24: =CONCATENATE($C24-1,$A$4," + ",$C24) -> 5c + 6 | K24: =CONCATENATE($C24-1," × ",$S$4," + ",$C24) -> 5 × 3 + 6 | L24: =($C24-1)*$S$4+$C24 -> 21 | M24: =CONCATENATE($C24+2,$A$5," + ",$C24) -> 8d + 6 | N24: =CONCATENATE(($C24+2)," × ",$S$5," + ",$C24) -> 8 × 4 + 6 | O24: =($C24+2)*$S$5+$C24 -> 38 | P24: =CONCATENATE($C24,$A$4," + ","8") -> 6c + 8 | Q24: =CONCATENATE($C24," × ",$S$4," + ","8") -> 6 × 3 + 8 | R24: =$C24*$S$4+8 -> 26 | T24: 5c + 6 | U24: 5 × 3 + 6 | V24: 21
A25: 13 | B25: 3 | C25: =INT(5*RAND()+3) -> 7 | D25: =CONCATENATE($C25,$A$8," - ",$C25) -> 7y - 7 | E25: =CONCATENATE($C25," × ",$S$8," - ",$C25) -> 7 × 10 - 7 | F25: =$C25*$S$8-$C25 -> 63 | G25: =CONCATENATE($C25,$A$8," - ",($C25-1)) -> 7y - 6 | H25: =CONCATENATE($C25," × ",$S$8," - ",($C25-1)) -> 7 × 10 - 6 | I25: =$C25*$S$8-($C25-1) -> 64 | J25: =CONCATENATE(($C25-2),$A$8," - ",($C25-1)) -> 5y - 6 | K25: =CONCATENATE(($C25-2)," × ",$S$8," - ",($C25-1)) -> 5 × 10 - 6 | L25: =($C25-2)*$S$8-($C25-1) -> 44 | M25: =CONCATENATE(($C25+1),$A$8," - ",$C25) -> 8y - 7 | N25: =CONCATENATE(($C25+1)," × ",$S$8," - ",$C25) -> 8 × 10 - 7 | O25: =($C25+1)*$S$8-$C25 -> 73 | P25: =CONCATENATE(($C25-1),$A$8," - ",$C25) -> 6y - 7 | Q25: =CONCATENATE(($C25-1)," × ",$S$8," - ",$C25) -> 6 × 10 - 7 | R25: =($C25-1)*$S$8-$C25 -> 53 | T25: 7y - 6 | U25: 7 × 10 - 6 | V25: 64
A26: 14 | B26: 9 | C26: =INT(5*RAND()+3) -> 4 | D26: =CONCATENATE($A$5,$A$4," + ",$C26) -> dc + 4 | E26: =CONCATENATE($S$5," × ",$S$4," + ",$C26) -> 4 × 3 + 4 | F26: =$S$5*$S$4+$C26 -> 16 | G26: =CONCATENATE($A$4,$A$5," + ",$C26) -> cd + 4 | H26: =CONCATENATE($S$4," × ",$S$5," + ",$C26) -> 3 × 4 + 4 | I26: =$S$4*$S$5+$C26 -> 16 | J26: =CONCATENATE($A$5,$A$8," + ",$C26) -> dy + 4 | K26: =CONCATENATE($S$5," × ",$S$8," + ",$C26) -> 4 × 10 + 4 | L26: =$S$5*$S$8+$C26 -> 44 | M26: =CONCATENATE($A$5,$A$4," + ",($C26+2)) -> dc + 6 | N26: =CONCATENATE($S$5," × ",$S$4," + ",($C26+2)) -> 4 × 3 + 6 | O26: =$S$5*$S$4+($C26+2) -> 18 | P26: =CONCATENATE($A$5,$A$6," + ",($C26+2)) -> dj + 6 | Q26: =CONCATENATE($S$5," × ",$S$6," + ",($C26+2)) -> 4 × 5 + 6 | R26: =$S$5*$S$6+($C26+2) -> 26 | T26: dc + 6 | U26: 4 × 3 + 6 | V26: 18
A27: 15 | B27: 0 | C27: 7 | D27: =CONCATENATE($A$7,$A$4," + ",$C27) -> sc + 7 | E27: =CONCATENATE($S$7," × ",$S$4," + ",$C27) -> 6 × 3 + 7 | F27: =$S$7*$S$4+$C27 -> 25 | G27: =CONCATENATE($A$4,$A$7," + ",$C27) -> cs + 7 | H27: =CONCATENATE($S$4," × ",$S$7," + ",$C27) -> 3 × 6 + 7 | I27: =$S$4*$S$7+$C27 -> 25 | J27: =CONCATENATE($A$7,$A$4," - ",$C27) -> sc - 7 | K27: =CONCATENATE($S$7," × ",$S$4," - ",$C27) -> 6 × 3 - 7 | L27: =$S$7*$S$4-$C27 -> 11 | M27: =CONCATENATE($A$7,$A$4," + ",$C27) -> sc + 7 | N27: =CONCATENATE($S$7," × ",$S$4," + ",$C27) -> 6 × 3 + 7 | O27: =$S$7*$S$4+$C27 -> 25 | P27: =CONCATENATE($A$7,$A$5," - ",$C27) -> sd - 7 | Q27: =CONCATENATE($S$7," × ",$S$5," - ",$C27) -> 6 × 4 - 7 | R27: =$S$7*$S$5-$C27 -> 17 | T27: sc + 7 | U27: 6 × 3 + 7 | V27: 25
A28: 16 | B28: 12 | C28: 9 | D28: =CONCATENATE($A$4,$A$6,$A$8) -> cjy | E28: =CONCATENATE($S$4," × ",$S$6," × ",$S$8) -> 3 × 5 × 10 | F28: =$S$4*$S$6*$S$8 -> 150 | G28: =CONCATENATE($A$4,$A$5,$A$8) -> cdy | H28: =CONCATENATE($S$4," × ",$S$5," × ",$S$8) -> 3 × 4 × 10 | I28: =$S$4*$S$5*$S$8 -> 120 | J28: =CONCATENATE($A$4,$A$5,$A$6) -> cdj | K28: =CONCATENATE($S$4," × ",$S$5," × ",$S$6) -> 3 × 4 × 5 | L28: =$S$4*$S$5*$S$6 -> 60 | M28: =CONCATENATE($A$5,$A$6,$A$4) -> djc | N28: =CONCATENATE($S$5," × ",$S$6," × ",$S$4) -> 4 × 5 × 3 | O28: =$S$5*$S$6*$S$4 -> 60 | P28: =CONCATENATE($A$4,$A$7,$A$5) -> csd | Q28: =CONCATENATE($S$4," × ",$S$7," × ",$S$5) -> 3 × 6 × 4 | R28: =$S$4*$S$7*$S$5 -> 72 | T28: csd | U28: 3 × 6 × 4 | V28: 72
A29: 17 | B29: 0 | C29: 8 | D29: =CONCATENATE($A$6,$A$4,$A$5) -> jcd | E29: =CONCATENATE($S$6," × ",$S$4," × ",$S$5) -> 5 × 3 × 4 | F29: =$S$6*$S$4*$S$5 -> 60 | G29: =CONCATENATE($A$4,$A$5,$A$6) -> cdj | H29: =CONCATENATE($S$4," × ",$S$5," × ",$S$6) -> 3 × 4 × 5 | I29: =$S$4*$S$5*$S$6 -> 60 | J29: =CONCATENATE($A$4,$A$5,$A$8) -> cdy | K29: =CONCATENATE($S$6," × ",$S$4," × ",$S$8) -> 5 × 3 × 10 | L29: =$S$6*$S$4*$S$8 -> 150 | M29: =CONCATENATE($A$8,$A$4,$A$5) -> ycd | N29: =CONCATENATE($S$8," × ",$S$4," × ",$S$5) -> 10 × 3 × 4 | O29: =$S$8*$S$4*$S$5 -> 120 | P29: =CONCATENATE($A$4,$A$8,$A$5) -> cyd | Q29: =CONCATENATE($S$4," × ",$S$8," × ",$S$5) -> 3 × 10 × 4 | R29: =$S$4*$S$8*$S$5 -> 120 | T29: jcd | U29: 5 × 3 × 4 | V29: 60
A30: 18 | B30: 0 | C30: 7 | D30: =CONCATENATE($A$4,$A$5," + ",$A$6,$A$7) -> cd + js | E30: =CONCATENATE($S$4," × ",$S$5," + ",$S$6," × ",$S$7) -> 3 × 4 + 5 × 6 | F30: =$S$4*$S$5+$S$6*$S$7 -> 42 | G30: =CONCATENATE($A$4,$A$5," + ",$A$6,$A$8) -> cd + jy | H30: =CONCATENATE($S$4," × ",$S$5," + ",$S$6," × ",$S$8) -> 3 × 4 + 5 × 10 | I30: =$S$4*$S$5+$S$6*$S$8 -> 62 | J30: =CONCATENATE($A$4,$A$6," + ",$A$5,$A$7) -> cj + ds | K30: =CONCATENATE($S$4," × ",$S$6," + ",$S$5," × ",$S$7) -> 3 × 5 + 4 × 6 | L30: =$S$4*$S$6+$S$5*$S$7 -> 39 | M30: =CONCATENATE($A$8,$A$5," - ",$A$4,$A$7) -> yd - cs | N30: =CONCATENATE($S$8," × ",$S$5," - ",$S$4," × ",$S$7) -> 10 × 4 - 3 × 6 | O30: =$S$8*$S$5-$S$4*$S$7 -> 22 | P30: =CONCATENATE($A$8,$A$6," - ",$A$6,$A$7) -> yj - js | Q30: =CONCATENATE($S$8," × ",$S$6," - ",$S$6," × ",$S$7) -> 10 × 5 - 5 × 6 | R30: =$S$8*$S$6-$S$6*$S$7 -> 20 | T30: cd + js | U30: 3 × 4 + 5 × 6 | V30: 42
A31: 19 | B31: 12 | C31: 5 | D31: =CONCATENATE($A$6,$A$7," + ",$A$5,$A$4) -> js + dc | E31: =CONCATENATE($S$6," × ",$S$7," + ",$S$5," × ",$S$4) -> 5 × 6 + 4 × 3 | F31: =$S$6*$S$7+$S$5*$S$4 -> 42 | G31: =CONCATENATE($A$5,$A$4," + ",$A$6,$A$7) -> dc + js | H31: =CONCATENATE($S$5," × ",$S$4," + ",$S$6," × ",$S$7) -> 4 × 3 + 5 × 6 | I31: =$S$5*$S$4+$S$6*$S$7 -> 42 | J31: =CONCATENATE($A$6,$A$7," - ",$A$5,$A$4) -> js - dc | K31: =CONCATENATE($S$6," × ",$S$7," - ",$S$5," × ",$S$4) -> 5 × 6 - 4 × 3 | L31: =$S$6*$S$7-$S$5*$S$4 -> 18 | M31: =CONCATENATE($A$8,$A$7," - ",$A$5,$A$4) -> ys - dc | N31: =CONCATENATE($S$8," × ",$S$7," - ",$S$5," × ",$S$4) -> 10 × 6 - 4 × 3 | O31: =$S$8*$S$7-$S$5*$S$4 -> 48 | P31: =CONCATENATE($A$4,$A$7," + ",$A$5,$A$6) -> cs + dj | Q31: =CONCATENATE($S$4," × ",$S$7," + ",$S$5," × ",$S$6) -> 3 × 6 + 4 × 5 | R31: =$S$4*$S$7+$S$5*$S$6 -> 38 | T31: cs + dj | U31: 3 × 6 + 4 × 5 | V31: 38
A32: 20 | B32: 12 | C32: 8 | D32: =CONCATENATE($A$8,$A$5," + ",$A$8,$A$6) -> yd + yj | E32: =CONCATENATE($S$8," × ",$S$5," + ",$S$8," × ",$S$6) -> 10 × 4 + 10 × 5 | F32: =$S$8*$S$5+$S$8*$S$6 -> 90 | G32: =CONCATENATE($A$8,$A$5," + ",$A$8,$A$4) -> yd + yc | H32: =CONCATENATE($S$8," × ",$S$5," + ",$S$8," × ",$S$4) -> 10 × 4 + 10 × 3 | I32: =$S$8*$S$5+$S$8*$S$4 -> 70 | J32: =CONCATENATE($A$8,$A$7," - ",$A$8,$A$4) -> ys - yc | K32: =CONCATENATE($S$8," × ",$S$7," - ",$S$8," × ",$S$4) -> 10 × 6 - 10 × 3 | L32: =$S$8*$S$7-$S$8*$S$4 -> 30 | M32: =CONCATENATE($A$4,$A$5," + ",$A$4,$A$6) -> cd + cj | N32: =CONCATENATE($S$4," × ",$S$5," + ",$S$4," × ",$S$6) -> 3 × 4 + 3 × 5 | O32: =$S$4*$S$5+$S$4*$S$6 -> 27 | P32: =CONCATENATE($A$8,$A$4," + ",$A$8,$A$6) -> yc + yj | Q32: =CONCATENATE($S$8," × ",$S$4," + ",$S$8," × ",$S$6) -> 10 × 3 + 10 × 5 | R32: =$S$8*$S$4+$S$8*$S$6 -> 80 | T32: yc + yj | U32: 10 × 3 + 10 × 5 | V32: 80
A33: 21 | B33: 0 | C33: 6 | D33: =CONCATENATE($C33,"(",$A$5," + ",$C33,")") -> 6(d + 6) | E33: =CONCATENATE($C33," × ","(",$S$5," + ",$C33,")") -> 6 × (4 + 6) | F33: =$C33*($S$5+$C33) -> 60 | G33: =CONCATENATE(($C33+1),"(",$A$5," + ",$C33,")") -> 7(d + 6) | H33: =CONCATENATE(($C33+1)," × ","(",$S$5," + ",$C33,")") -> 7 × (4 + 6) | I33: =($C33+1)*($S$5+$C33) -> 70 | J33: =CONCATENATE($C21,"(",$A$5," + ",($C33-1),")") -> 8(d + 5) | K33: =CONCATENATE($C33," × ","(",$S$5," + ",($C33-1),")") -> 6 × (4 + 5) | L33: =$C33*($S$5+($C33-1)) -> 54 | M33: =CONCATENATE($C21,"(",$A$6," + ",$C33,")") -> 8(j + 6) | N33: =CONCATENATE($C33," × ","(",$S$6," + ",$C33,")") -> 6 × (5 + 6) | O33: =$C33*($S$6+$C33) -> 66 | P33: =CONCATENATE($C21,"(",$A$7," + ",($C33-1),")") -> 8(s + 5) | Q33: =CONCATENATE($C33," × ","(",$S$7," + ",($C33-1),")") -> 6 × (6 + 5) | R33: =$C33*($S$7+($C33-1)) -> 66 | T33: 6(d + 6) | U33: 6 × (4 + 6) | V33: 60
A34: 22 | B34: 6 | C34: =INT(5*RAND()+5) -> 5 | D34: =CONCATENATE($C34,"(",$A$8," + ",$C34,")") -> 5(y + 5) | E34: =CONCATENATE($C34," × ","(",$S$8," + ",$C34,")") -> 5 × (10 + 5) | F34: =$C34*($S$8+$C34) -> 75 | G34: =CONCATENATE(($C34+1),"(",$A$8," + ",$C34,")") -> 6(y + 5) | H34: =CONCATENATE(($C34+1)," × ","(",$S$8," + ",$C34,")") -> 6 × (10 + 5) | I34: =($C34+1)*($S$8+$C34) -> 90 | J34: =CONCATENATE($C34,"(",$A$8," - ",($C34-2),")") -> 5(y - 3) | K34: =CONCATENATE($C34," × ","(",$S$8," - ",($C34-2),")") -> 5 × (10 - 3) | L34: =$C34*($S$8-($C34-2)) -> 35 | M34: =CONCATENATE(($C34+1),"(",$A$8," - ",$C34,")") -> 6(y - 5) | N34: =CONCATENATE(($C34+1)," × ","(",$S$8," - ",$C34,")") -> 6 × (10 - 5) | O34: =($C34+1)*($S$8-$C34) -> 30 | P34: =CONCATENATE(($C34-2),"(",$A$8," + ",$C34,")") -> 3(y + 5) | Q34: =CONCATENATE(($C34-2)," × ","(",$S$8," + ",$C34,")") -> 3 × (10 + 5) | R34: =($C34-2)*($S$8+$C34) -> 45 | T34: =OFFSET(D34,0,VALUE(B34)) -> 5(y - 3) | U34: 5 × (10 - 3) | V34: =OFFSET(F34,0,VALUE(B34)) -> 35
A35: 23 | B35: 9 | C35: =INT(4*RAND()+2) -> 3 | D35: =CONCATENATE($C35,"(","3",$A$7," + ",$C35,")") -> 3(3s + 3) | E35: =CONCATENATE($C35," × ","(","3"," × ",$S$7," + ",$C35,")") -> 3 × (3 × 6 + 3) | F35: =$C35*(3*$S$7+$C35) -> 63 | G35: =CONCATENATE($C35,"(","4",$A$7," + ",$C35,")") -> 3(4s + 3) | H35: =CONCATENATE($C35," × ","(","3"," × ",$S$7," + ",$C35,")") -> 3 × (3 × 6 + 3) | I35: =$C35*(3*$S$7+$C35) -> 63 | J35: =CONCATENATE($C35,"(","2",$A$5," + ",$C35,")") -> 3(2d + 3) | K35: =CONCATENATE($C35," × ","(","2"," × ",$S$5," + ",$C35,")") -> 3 × (2 × 4 + 3) | L35: =$C35*(2*$S$5+$C35) -> 33 | M35: =CONCATENATE($C35,"(","4",$A$7," + ",$C35,")") -> 3(4s + 3) | N35: =CONCATENATE($C35," × ","(","4"," × ",$S$7," + ",$C35,")") -> 3 × (4 × 6 + 3) | O35: =$C35*(4*$S$7+$C35) -> 81 | P35: =CONCATENATE(($C35+1),"(","3",$A$7," + ",$C35,")") -> 4(3s + 3) | Q35: =CONCATENATE(($C35+1)," × ","(","3"," × ",$S$7," + ",$C35,")") -> 4 × (3 × 6 + 3) | R35: =($C35+1)*(3*$S$7+$C35) -> 84 | T35: 3(4s + 3) | U35: 3 × (4 × 6 + 3) | V35: 81
A36: 24 | B36: 12 | C36: =INT(4*RAND()+2) -> 2 | D36: =CONCATENATE($C36,"(","2",$A$8," - ",$C36,")") -> 2(2y - 2) | E36: =CONCATENATE($C36," × ","(","2"," × ",$S$8," - ",$C36,")") -> 2 × (2 × 10 - 2) | F36: =$C36*(2*$S$8-$C36) -> 36 | G36: =CONCATENATE($C36,"(","2",$A$8," - ",($C36-1),")") -> 2(2y - 1) | H36: =CONCATENATE($C36," × ","(","2"," × ",$S$8," - ",($C36-1),")") -> 2 × (2 × 10 - 1) | I36: =$C36*(2*$S$8-($C36-1)) -> 38 | J36: =CONCATENATE($C36,"(","3",$A$8," - ",$C36,")") -> 2(3y - 2) | K36: =CONCATENATE($C36," × ","(","3"," × ",$S$8," - ",$C36,")") -> 2 × (3 × 10 - 2) | L36: =$C36*(3*$S$8-$C36) -> 56 | M36: =CONCATENATE($C36,"(","3",$A$7," - ",($C36-1),")") -> 2(3s - 1) | N36: =CONCATENATE($C36," × ","(","3"," × ",$S$7," - ",($C36-1),")") -> 2 × (3 × 6 - 1) | O36: =$C36*(3*$S$7-($C36-1)) -> 34 | P36: =CONCATENATE($C36,"(","4",$A$6," - ",$C36,")") -> 2(4j - 2) | Q36: =CONCATENATE($C36," × ","(","4"," × ",$S$6," - ",$C36,")") -> 2 × (4 × 5 - 2) | R36: =$C36*(4*$S$6-$C36) -> 36 | T36: 2(4j - 2) | U36: 2 × (4 × 5 - 2) | V36: 36
A37: 25 | B37: 3 | C37: =INT(5*RAND()+3) -> 4 | D37: =CONCATENATE($C37,"(","3",$A$4," + ","2",$A$5,")") -> 4(3c + 2d) | E37: =CONCATENATE($C37," × ","(","3"," × ",$S$4," + ","2"," × ",$S$5,")") -> 4 × (3 × 3 + 2 × 4) | F37: =$C37*(3*$S$4+2*$S$5) -> 68 | G37: =CONCATENATE($C37,"(","4",$A$4," + ","3",$A$5,")") -> 4(4c + 3d) | H37: =CONCATENATE($C37," × ","(","4"," × ",$S$4," + ","3"," × ",$S$5,")") -> 4 × (4 × 3 + 3 × 4) | I37: =$C37*(4*$S$4+3*$S$5) -> 96 | J37: =CONCATENATE($C37,"(","2",$A$7," + ","3",$A$6,")") -> 4(2s + 3j) | K37: =CONCATENATE($C37," × ","(","2"," × ",$S$7," + ","3"," × ",$S$6,")") -> 4 × (2 × 6 + 3 × 5) | L37: =$C37*(2*$S$7+3*$S$6) -> 108 | M37: =CONCATENATE($C37,"(","3",$A$6," - ","2",$A$4,")") -> 4(3j - 2c) | N37: =CONCATENATE($C37," × ","(","3"," × ",$S$6," - ","2"," × ",$S$4,")") -> 4 × (3 × 5 - 2 × 3) | O37: =$C37*(3*$S$6-2*$S$4) -> 36 | P37: =CONCATENATE(($C37-1),"(","3",$A$7," - ","2",$A$5,")") -> 3(3s - 2d) | Q37: =CONCATENATE(($C37-1)," × ","(","3"," × ",$S$7," - ","2"," × ",$S$5,")") -> 3 × (3 × 6 - 2 × 4) | R37: =($C37-1)*(3*$S$7-2*$S$5) -> 30 | T37: 4(4c + 3d) | U37: 4 × (4 × 3 + 3 × 4) | V37: 96
A38: 26 | B38: 6 | C38: 6 | D38: =CONCATENATE($C38,"(","2",$A$6," + ","3",$A$4," + ",$A$7,")") -> 6(2j + 3c + s) | E38: =CONCATENATE($C38," × ","(","2"," × ",$S$6," + ","3"," × ",$S$4," + ",$S$7,")") -> 6 × (2 × 5 + 3 × 3 + 6) | F38: =$C38*(2*$S$6+3*$S$4+$S$7) -> 150 | G38: =CONCATENATE(($C38+1),"(","3",$A$6," + ","2",$A$4," + ",$A$7,")") -> 7(3j + 2c + s) | H38: =CONCATENATE($C38," × ","(","2"," × ",$S$6," + ","3"," × ",$S$4," + ",$S$7,")") -> 6 × (2 × 5 + 3 × 3 + 6) | I38: =$C38*(2*$S$6+3*$S$4+$S$7) -> 150 | J38: =CONCATENATE(($C38-1),"(","2",$A$6," + ","3",$A$4," + ",$A$7,")") -> 5(2j + 3c + s) | K38: =CONCATENATE(($C38-1),"(","2"," × ",$S$6," + ","3"," × ",$S$4," + ",$S$7,")") -> 5(2 × 5 + 3 × 3 + 6) | L38: =($C38-1)*(2*$S$6+3*$S$4+$S$7) -> 125 | M38: =CONCATENATE(($C38-1),"(","3",$A$6," - ","2",$A$4," + ",$A$7,")") -> 5(3j - 2c + s) | N38: =CONCATENATE(($C38-1),"(","3"," × ",$S$6," - ","2"," × ",$S$4," + ",$S$7,")") -> 5(3 × 5 - 2 × 3 + 6) | O38: =($C38-1)*(3*$S$6-2*$S$4+$S$7) -> 75 | P38: =CONCATENATE(($C38-2),"(","3",$A$6," - ","2",$A$4," + ",$A$7,")") -> 4(3j - 2c + s) | Q38: =CONCATENATE(($C38-2),"(","3"," × ",$S$6," - ","2"," × ",$S$4," + ",$S$7,")") -> 4(3 × 5 - 2 × 3 + 6) | R38: =($C38-2)*(3*$S$6-2*$S$4+$S$7) -> 60 | T38: 5(2j + 3c + s) | U38: 5(2 × 5 + 3 × 3 + 6) | V38: 125
A39: 27 | B39: 3 | C39: 6 | D39: =CONCATENATE($A$4,CHAR(178)) -> c² | E39: =CONCATENATE($S$4,CHAR(178)) -> 3² | F39: =$S$4^2 -> 9 | G39: =CONCATENATE($A$5,CHAR(178)) -> d² | H39: =CONCATENATE($S$5,CHAR(178)) -> 4² | I39: =$S$5^2 -> 16 | J39: =CONCATENATE($A$6,CHAR(178)) -> j² | K39: =CONCATENATE($S$6,CHAR(178)) -> 5² | L39: =$S$6^2 -> 25 | M39: =CONCATENATE($A$7,CHAR(178)) -> s² | N39: =CONCATENATE($S$7,CHAR(178)) -> 6² | O39: =$S$7^2 -> 36 | P39: =CONCATENATE($A$8,CHAR(178)) -> y² | Q39: =CONCATENATE($S$8,CHAR(178)) -> 10² | R39: =$S$8^2 -> 100 | T39: d² | U39: 4² | V39: 16
A40: 28 | B40: 12 | C40: 5 | D40: =CONCATENATE("3",$A$4,CHAR(178)) -> 3c² | E40: =CONCATENATE("3"," × ",$S$4,CHAR(178)) -> 3 × 3² | F40: =3*$S$4^2 -> 27 | G40: =CONCATENATE("3",$A$5,CHAR(178)) -> 3d² | H40: =CONCATENATE("3"," × ",$S$5,CHAR(178)) -> 3 × 4² | I40: =3*$S$5^2 -> 48 | J40: =CONCATENATE("3",$A$6,CHAR(178)) -> 3j² | K40: =CONCATENATE("3"," × ",$S$6,CHAR(178)) -> 3 × 5² | L40: =3*$S$6^2 -> 75 | M40: =CONCATENATE("3",$A$7,CHAR(178)) -> 3s² | N40: =CONCATENATE("3"," × ",$S$7,CHAR(178)) -> 3 × 6² | O40: =3*$S$7^2 -> 108 | P40: =CONCATENATE("3",$A$8,CHAR(178)) -> 3y² | Q40: =CONCATENATE("3"," × ",$S$8,CHAR(178)) -> 3 × 10² | R40: =3*$S$8^2 -> 300 | T40: 3y² | U40: 3 × 10² | V40: 300
A41: 29 | B41: 0 | C41: 7 | D41: =CONCATENATE("2",$A$8,CHAR(178)) -> 2y² | E41: =CONCATENATE("2"," × ",$S$8,CHAR(178)) -> 2 × 10² | F41: =2*$S$8^2 -> 200 | G41: =CONCATENATE("5",$A$8,CHAR(178)) -> 5y² | H41: =CONCATENATE("5"," × ",$S$8,CHAR(178)) -> 5 × 10² | I41: =5*$S$8^2 -> 500 | J41: =CONCATENATE("4",$A$8,CHAR(178)) -> 4y² | K41: =CONCATENATE("4"," × ",$S$8,CHAR(178)) -> 4 × 10² | L41: =4*$S$8^2 -> 400 | M41: =CONCATENATE("2",$A$7,CHAR(178)) -> 2s² | N41: =CONCATENATE("2"," × ",$S$7,CHAR(178)) -> 2 × 6² | O41: =2*$S$7^2 -> 72 | P41: =CONCATENATE("10",$A$8,CHAR(178)) -> 10y² | Q41: =CONCATENATE("10"," × ",$S$8,CHAR(178)) -> 10 × 10² | R41: =10*$S$8^2 -> 1000 | T41: 2y² | U41: 2 × 10² | V41: 200
A42: 30 | B42: 6 | C42: 5 | D42: =CONCATENATE($A$5,CHAR(178)," + ",$C42) -> d² + 5 | E42: =CONCATENATE($S$5,CHAR(178)," + ",$C42) -> 4² + 5 | F42: =$S$5^2+$C42 -> 21 | G42: =CONCATENATE($A$7,CHAR(178)," + ",($C42-1)) -> s² + 4 | H42: =CONCATENATE($S$5,CHAR(178)," + ",($C42-1)) -> 4² + 4 | I42: =$S$5^2+$C42-1 -> 20 | J42: =CONCATENATE($A$5,CHAR(178)," + ",($C42-3)) -> d² + 2 | K42: =CONCATENATE($S$5,CHAR(178)," + ",($C42-3)) -> 4² + 2 | L42: =$S$5^2+$C42-3 -> 18 | M42: =CONCATENATE($A$8,CHAR(178)," + ",$C42) -> y² + 5 | N42: =CONCATENATE($S$8,CHAR(178)," + ",$C42) -> 10² + 5 | O42: =$S$8^2+$C41 -> 107 | P42: =CONCATENATE($A$5,CHAR(178)," + ",($C42+3)) -> d² + 8 | Q42: =CONCATENATE($S$5,CHAR(178)," + ",($C42+3)) -> 4² + 8 | R42: =$S$5^2+$C42+3 -> 24 | T42: d² + 2 | U42: 4² + 2 | V42: 18
A43: 31 | B43: 9 | C43: 5 | D43: =CONCATENATE($A$7,CHAR(178)," - ",$C43) -> s² - 5 | E43: =CONCATENATE($S$7,CHAR(178)," - ",$C43) -> 6² - 5 | F43: =$S$7^2-$C43 -> 31 | G43: =CONCATENATE($A$7,CHAR(178)," - ",($C43-2)) -> s² - 3 | H43: =CONCATENATE($S$7,CHAR(178)," - ",($C43-2)) -> 6² - 3 | I43: =$S$7^2-$C43+2 -> 33 | J43: =CONCATENATE($A$8,CHAR(178)," - ",$C42) -> y² - 5 | K43: =CONCATENATE($S$8,CHAR(178)," - ",$C43) -> 10² - 5 | L43: =$S$8^2-$C42 -> 95 | M43: =CONCATENATE($A$8,CHAR(178)," - ",($C42-1)) -> y² - 4 | N43: =CONCATENATE($S$8,CHAR(178)," - ",($C42-1)) -> 10² - 4 | O43: =$S$8^2-($C42-1) -> 96 | P43: =CONCATENATE($A$6,CHAR(178)," - ",$C42) -> j² - 5 | Q43: =CONCATENATE($S$6,CHAR(178)," - ",$C43) -> 5² - 5 | R43: =$S$6^2-$C42 -> 20 | T43: y² - 4 | U43: 10² - 4 | V43: 96
A44: 32 | B44: 0 | C44: 9 | D44: =CONCATENATE($A$4,CHAR(178)," + ","3",$A$5) -> c² + 3d | E44: =CONCATENATE($S$4,CHAR(178)," + ","3"," × ",$S$5) -> 3² + 3 × 4 | F44: =$S$4^2+3*$S$5 -> 21 | G44: =CONCATENATE($A$4,CHAR(178)," + ","4",$A$5) -> c² + 4d | H44: =CONCATENATE($S$4,CHAR(178)," + ","4"," × ",$S$5) -> 3² + 4 × 4 | I44: =$S$4^2+4*$S$5 -> 25 | J44: =CONCATENATE($A$4,CHAR(178)," + ","3",$A$4) -> c² + 3c | K44: =CONCATENATE($S$4,CHAR(178)," + ","3"," × ",$S$4) -> 3² + 3 × 3 | L44: =$S$4^2+3*$S$4 -> 18 | M44: =CONCATENATE($A$8,CHAR(178)," - ","2",$A$5) -> y² - 2d | N44: =CONCATENATE($S$8,CHAR(178)," - ","2"," × ",$S$5) -> 10² - 2 × 4 | O44: =$S$8^2-2*$S$5 -> 92 | P44: =CONCATENATE($A$5,CHAR(178)," - ","2",$A$4) -> d² - 2c | Q44: =CONCATENATE($S$5,CHAR(178)," - ","2"," × ",$S$4) -> 4² - 2 × 3 | R44: =$S$5^2-2*$S$4 -> 10 | T44: c² + 3d | U44: 3² + 3 × 4 | V44: 21
A45: 33 | B45: 3 | C45: 8 | D45: =CONCATENATE($A$5,CHAR(178)," + ",$A$6,CHAR(178)) -> d² + j² | E45: =CONCATENATE($S$5,CHAR(178)," + ",$S$6,CHAR(178)) -> 4² + 5² | F45: =$S$5^2+$S$6^2 -> 41 | G45: =CONCATENATE($A$4,CHAR(178)," + ",$A$6,CHAR(178)) -> c² + j² | H45: =CONCATENATE($S$4,CHAR(178)," + ",$S$6,CHAR(178)) -> 3² + 5² | I45: =$S$4^2+$S$6^2 -> 34 | J45: =CONCATENATE($A$7,CHAR(178)," + ",$A$5,CHAR(178)) -> s² + d² | K45: =CONCATENATE($S$7,CHAR(178)," + ",$S$5,CHAR(178)) -> 6² + 4² | L45: =$S$7^2+$S$5^2 -> 52 | M45: =CONCATENATE($A$8,CHAR(178)," + ",$A$5,CHAR(178)) -> y² + d² | N45: =CONCATENATE($S$8,CHAR(178)," + ",$S$5,CHAR(178)) -> 10² + 4² | O45: =$S$8^2+$S$5^2 -> 116 | P45: =CONCATENATE($A$8,CHAR(178)," + ",$A$4,CHAR(178)) -> y² + c² | Q45: =CONCATENATE($S$8,CHAR(178)," + ",$S$4,CHAR(178)) -> 10² + 3² | R45: =$S$8^2+$S$4^2 -> 109 | T45: c² + j² | U45: 3² + 5² | V45: 34
A46: 34 | B46: 12 | C46: 6 | D46: =CONCATENATE($A$8,CHAR(178)," - ",$A$7,CHAR(178)) -> y² - s² | E46: =CONCATENATE($S$8,CHAR(178)," - ",$S$7,CHAR(178)) -> 10² - 6² | F46: =$S$8^2-$S$7^2 -> 64 | G46: =CONCATENATE($A$7,CHAR(178)," - ",$A$5,CHAR(178)) -> s² - d² | H46: =CONCATENATE($S$7,CHAR(178)," - ",$S$5,CHAR(178)) -> 6² - 4² | I46: =$S$7^2-$S$5^2 -> 20 | J46: =CONCATENATE($A$6,CHAR(178)," - ",$A$4,CHAR(178)) -> j² - c² | K46: =CONCATENATE($S$6,CHAR(178)," - ",$S$4,CHAR(178)) -> 5² - 3² | L46: =$S$6^2-$S$4^2 -> 16 | M46: =CONCATENATE($A$8,CHAR(178)," - ",$A$6,CHAR(178)) -> y² - j² | N46: =CONCATENATE($S$8,CHAR(178)," - ",$S$6,CHAR(178)) -> 10² - 5² | O46: =$S$8^2-$S$6^2 -> 75 | P46: =CONCATENATE($A$7,CHAR(178)," - ",$A$6,CHAR(178)) -> s² - j² | Q46: =CONCATENATE($S$7,CHAR(178)," - ",$S$6,CHAR(178)) -> 6² - 5² | R46: =$S$7^2-$S$6^2 -> 11 | T46: s² - j² | U46: 6² - 5² | V46: 11
A47: 35 | B47: 12 | C47: =INT(3*RAND()+2) -> 3 | D47: =CONCATENATE($A$8,$A$6,CHAR(178)) -> yj² | E47: =CONCATENATE($S$8," × ",$S$6,CHAR(178)) -> 10 × 5² | F47: =$S$8*$S$6^2 -> 250 | G47: =CONCATENATE($A$4,$A$6,CHAR(178)) -> cj² | H47: =CONCATENATE($S$4," × ",$S$6,CHAR(178)) -> 3 × 5² | I47: =$S$4*$S$6^2 -> 75 | J47: =CONCATENATE($A$5,$A$7,CHAR(178)) -> ds² | K47: =CONCATENATE($S$5," × ",$S$7,CHAR(178)) -> 4 × 6² | L47: =$S$5*$S$7^2 -> 144 | M47: =CONCATENATE($A$7,$A$8,CHAR(178)) -> sy² | N47: =CONCATENATE($S$4," × ",$S$8,CHAR(178)) -> 3 × 10² | O47: =$S$4*$S$8^2 -> 300 | P47: =CONCATENATE($A$4,$A$7,CHAR(178)) -> cs² | Q47: =CONCATENATE($S$4," × ",$S$7,CHAR(178)) -> 3 × 6² | R47: =$S$4*$S$7^2 -> 108 | T47: cs² | U47: 3 × 6² | V47: 108
A48: 36 | B48: 0 | C48: =INT(3*RAND()+2) -> 3 | D48: =CONCATENATE($A$4,CHAR(178),$A$5,CHAR(178)) -> c²d² | E48: =CONCATENATE($S$4,CHAR(178)," × ",$S$5,CHAR(178)) -> 3² × 4² | F48: =$S$4^2*$S$5^2 -> 144 | G48: =CONCATENATE($A$4,CHAR(178),$A$8,CHAR(178)) -> c²y² | H48: =CONCATENATE($S$4,CHAR(178)," × ",$S$8,CHAR(178)) -> 3² × 10² | I48: =$S$4^2*$S$8^2 -> 900 | J48: =CONCATENATE($A$7,CHAR(178),$A$4,CHAR(178)) -> s²c² | K48: =CONCATENATE($S$5,CHAR(178)," × ",$S$4,CHAR(178)) -> 4² × 3² | L48: =$S$5^2*$S$4^2 -> 144 | M48: =CONCATENATE($A$5,CHAR(178),$A$6,CHAR(178)) -> d²j² | N48: =CONCATENATE($S$5,CHAR(178)," × ",$S$6,CHAR(178)) -> 4² × 5² | O48: =$S$5^2*$S$6^2 -> 400 | P48: =CONCATENATE($A$8,CHAR(178),$A$5,CHAR(178)) -> y²d² | Q48: =CONCATENATE($S$8,CHAR(178)," × ",$S$5,CHAR(178)) -> 10² × 4² | R48: =$S$8^2*$S$5^2 -> 1600 | T48: c²d² | U48: 3² × 4² | V48: 144
A49: 37 | B49: 12 | C49: =INT(3*RAND()+2) -> 4 | D49: =CONCATENATE("2",$A$6,$A$4,CHAR(178)) -> 2jc² | E49: =CONCATENATE("2"," × ",$S$6," × ",$S$4,CHAR(178)) -> 2 × 5 × 3² | F49: =2*$S$6*$S$4^2 -> 90 | G49: =CONCATENATE("2",$A$7,$A$4,CHAR(178)) -> 2sc² | H49: =CONCATENATE("2"," × ",$S$7," × ",$S$4,CHAR(178)) -> 2 × 6 × 3² | I49: =2*$S$7*$S$4^2 -> 108 | J49: =CONCATENATE("3",$A$6,$A$5,CHAR(178)) -> 3jd² | K49: =CONCATENATE("3"," × ",$S$6," × ",$S$5,CHAR(178)) -> 3 × 5 × 4² | L49: =3*$S$6*$S$5^2 -> 240 | M49: =CONCATENATE("2",$A$4,$A$7,CHAR(178)) -> 2cs² | N49: =CONCATENATE("2"," × ",$S$4," × ",$S$7,CHAR(178)) -> 2 × 3 × 6² | O49: =2*$S$4*$S$7^2 -> 216 | P49: =CONCATENATE("3",$A$5,$A$4,CHAR(178)) -> 3dc² | Q49: =CONCATENATE("3"," × ",$S$5," × ",$S$4,CHAR(178)) -> 3 × 4 × 3² | R49: =3*$S$5*$S$4^2 -> 108 | T49: 3dc² | U49: 3 × 4 × 3² | V49: 108
A50: 38 | B50: 3 | C50: 8 | D50: =CONCATENATE($A$6,$A$4,CHAR(178)," + ",$C50,$A$4) -> jc² + 8c | E50: =CONCATENATE($S$6," × ",$S$4,CHAR(178)," + ",$C50," × ",$S$4) -> 5 × 3² + 8 × 3 | F50: =$S$6*$S$4^2+$C50*$S$4 -> 69 | G50: =CONCATENATE($A$4,$A$6,CHAR(178)," + ",$C50,$A$4) -> cj² + 8c | H50: =CONCATENATE($S$4," × ",$S$6,CHAR(178)," + ",$C50," × ",$S$4) -> 3 × 5² + 8 × 3 | I50: =$S$4*$S$6^2+$C50*$S$4 -> 99 | J50: =CONCATENATE($A$5,$A$7,CHAR(178)," + ",$C50,$A$4) -> ds² + 8c | K50: =CONCATENATE($S$5," × ",$S$7,CHAR(178)," + ",$C50," × ",$S$4) -> 4 × 6² + 8 × 3 | L50: =$S$5*$S$7^2+$C50*$S$4 -> 168 | M50: =CONCATENATE($A$4,$A$6,CHAR(178)," + ",$C50,$A$4) -> cj² + 8c | N50: =CONCATENATE($S$4," × ",$S$6,CHAR(178)," + ",$C50," × ",$S$4) -> 3 × 5² + 8 × 3 | O50: =$S$4*$S$6^2+$C50*$S$4 -> 99 | P50: =CONCATENATE($A$5,$A$4,CHAR(178)," + ",$C50,$A$7) -> dc² + 8s | Q50: =CONCATENATE($S$5," × ",$S$4,CHAR(178)," + ",$C50," × ",$S$7) -> 4 × 3² + 8 × 6 | R50: =$S$5*$S$4^2+$C50*$S$7 -> 84 | T50: cj² + 8c | U50: 3 × 5² + 8 × 3 | V50: 99
A51: 39 | B51: 3 | C51: 8 | D51: =CONCATENATE($C51,"(",$A$6,CHAR(178)," - ",$C51,")") -> 8(j² - 8) | E51: =CONCATENATE($C51," × ","(",$S$6,CHAR(178)," - ",$C51,")") -> 8 × (5² - 8) | F51: =$C51*($S$6^2-$C51) -> 136 | G51: =CONCATENATE($C51,"(",$A$5,CHAR(178)," - ",($C51-3),")") -> 8(d² - 5) | H51: =CONCATENATE($C51," × ","(",$S$5,CHAR(178)," - ",($C51-3),")") -> 8 × (4² - 5) | I51: =$C51*($S$5^2-$C51+3) -> 88 | J51: =CONCATENATE(($C51-2),"(",$A$7,CHAR(178)," - ",$C51,")") -> 6(s² - 8) | K51: =CONCATENATE(($C51-2)," × ","(",$S$7,CHAR(178)," - ",$C51,")") -> 6 × (6² - 8) | L51: =($C51-2)*($S$7^2-$C51) -> 168 | M51: =CONCATENATE($C51,"(",$A$5,CHAR(178)," - ",$C51,")") -> 8(d² - 8) | N51: =CONCATENATE($C51," × ","(",$S$5,CHAR(178)," - ",$C51,")") -> 8 × (4² - 8) | O51: =$C51*($S$5^2-$C51) -> 64 | P51: =CONCATENATE(($C51-3),"(",$A$5,CHAR(178)," - ",$C51,")") -> 5(d² - 8) | Q51: =CONCATENATE(($C51-3)," × ","(",$S$5,CHAR(178)," - ",$C51,")") -> 5 × (4² - 8) | R51: =($C51-3)*($S$5^2-$C51) -> 40 | T51: 8(d² - 5) | U51: 8 × (4² - 5) | V51: 88
A52: 40 | B52: 9 | C52: 9 | D52: =CONCATENATE($C52,"(",$A$4,CHAR(178)," + ",$A$5,CHAR(178),")") -> 9(c² + d²) | E52: =CONCATENATE($C52," × ","(",$S$4,CHAR(178)," + ",$S$5,CHAR(178),")") -> 9 × (3² + 4²) | F52: =$C52*($S$4^2+$S$5^2) -> 225 | G52: =CONCATENATE(($C52-1),"(",$A$5,CHAR(178)," + ",$A$4,CHAR(178),")") -> 8(d² + c²) | H52: =CONCATENATE(($C52-1)," × ","(",$S$5,CHAR(178)," + ",$S$4,CHAR(178),")") -> 8 × (4² + 3²) | I52: =($C52-1)*($S$5^2+$S$4^2) -> 200 | J52: =CONCATENATE($C52,"(",$A$6,CHAR(178)," + ",$A$4,CHAR(178),")") -> 9(j² + c²) | K52: =CONCATENATE($C52," × ","(",$S$6,CHAR(178)," + ",$S$4,CHAR(178),")") -> 9 × (5² + 3²) | L52: =$C52*($S$6^2+$S$4^2) -> 306 | M52: =CONCATENATE(($C52+1),"(",$A$8,CHAR(178)," - ",$A$6,CHAR(178),")") -> 10(y² - j²) | N52: =CONCATENATE(($C52+1)," × ","(",$S$8,CHAR(178)," - ",$S$6,CHAR(178),")") -> 10 × (10² - 5²) | O52: =(C52+1)*($S$8^2-$S$6^2) -> 750 | P52: =CONCATENATE(($C52+1),"(",$A$7,CHAR(178)," - ",$A$6,CHAR(178),")") -> 10(s² - j²) | Q52: =CONCATENATE(($C52+1)," × ","(",$S$7,CHAR(178)," - ",$S$5,CHAR(178),")") -> 10 × (6² - 4²) | R52: =(C52+1)*($S$7^2-$S$5^2) -> 200 | T52: 10(y² - j²) | U52: 10 × (10² - 5²) | V52: 750
